[Event "New York Spring GM-A 2022"]
[Site "New York"]
[Date "2022.04.15"]
[Round "1.1"]
[White "Barbosa, Oliver"]
[Black "Belous, Vladimir"]
[Result "1/2-1/2"]
[WhiteElo "2505"]
[BlackElo "2516"]
[Annotator "TA"]
[PlyCount "36"]
[EventDate "2022.04.14"]
[EventType "tourn"]
[EventCountry "USA"]
[SourceTitle "playchess.com"]
[Source "ChessBase"]
[SourceQuality "1"]
[TimeControl "5400+30"]

{[%evp 17,18,29,47]} 1. d4 {[%emt 0:00:04]} Nf6 {[%emt 0:00:06]} 2. c4 {[%emt 0:00:06]} c6 {[%emt 0:00:04]} 3. Nf3 {[%emt 0:00:08]} d5 {[%emt 0:00:03]} 4. Nc3 {[%emt 0:00:24]} e6 {[%emt 0:00:11]} 5. cxd5 {[%emt 0:00:11]} exd5 {[%emt 0:00:08]} 6. Bg5 {[%emt 0:00:09]} Be7 {[%emt 0:00:08]} 7. e3 {[%emt 0:00:11]} O-O {[%emt 0:00:07]} 8. Bd3 {[%emt 0:00:14]} Nbd7 {[%emt 0:00:31]} 9. Qc2 {[%emt 0:00:16]} Re8 {[%emt 0:00:13] [#]} {Predecessor:} 10. Bf4 $146 {D36: Queen's Gambit Declined: Exchange Variation: Main line (5 Bg5 c6 6 Qc2).} Nf8 11. O-O-O b5 12. Ne5 Bd7 13. g4 g6 14. h4 Nxg4 15. Nxd7 Qxd7 16. h5 Bd6 17. hxg6 fxg6 18. Bxd6 Qxd6 {0-1 (64) Mamedyarov,S (2767)-Jumabayev,R (2631) Chess.com INT 2022} 1/2-1/2

[Event "New York Spring GM-A 2022"]
[Site "New York"]
[Date "2022.04.15"]
[Round "1.2"]
[White "Korley, Kassa"]
[Black "Kaliksteyn, Alexander"]
[Result "1-0"]
[ECO "E04"]
[WhiteElo "2399"]
[BlackElo "2379"]
[Annotator "TA"]
[PlyCount "107"]
[EventDate "2022.04.14"]
[EventType "tourn"]
[EventCountry "USA"]
[SourceTitle "playchess.com"]
[Source "ChessBase"]
[SourceQuality "1"]
[TimeControl "5400+30"]

{[%evp 11,107,34,30,14,11,13,14,25,47,33,57,48,48,59,47,21,22,31,39,0,16,26,26,19,31,18,35,30,38,41,78,75,82,49,44,50,91,91,151,155,163,163,163,163,155,148,144,151,186,186,171,158,162,129,186,186,183,131,183,177,179,179,156,156,235,228,210,210,481,481,475,448,464,427,449,436,412,357,581,537,578,581,694,542,531,524,460,266,514,474,1323,1160,29974,29975,29974,29976,29978,29973]} 1. d4 {[%emt 0:00:03]} d5 {[%emt 0:00:13]} 2. c4 {[%emt 0:00:03]} e6 {[%emt 0:00:10]} 3. Nf3 {[%emt 0:00:03]} Nf6 {[%emt 0:00:17]} 4. g3 {[%emt 0:00:14]} dxc4 {[%emt 0:00:37]} 5. Bg2 {[%emt 0:00:10]} a6 {[%emt 0:00:33]} 6. O-O {[%emt 0:00:12]} Nc6 {[%emt 0:00:22]} 7. Be3 {[%emt 0:00:26] E04: Open Catalan: 5 Nf3.} Nd5 {[%emt 0:18:26]} 8. Qc1 {[%emt 0:00:14]} Nxe3 {[%emt 0:15:21]} 9. Qxe3 {[%emt 0:00:24] [#] The position is equal.} Nb4 $146 {[%emt 0:01:33]} ({Predecessor:} 9... Be7 10. Rc1 O-O 11. Rxc4 Bd7 12. a3 a5 13. Nbd2 a4 14. Ne5 Na5 15. Rc2 Bb5 {0-1 (63) Goryachkina,A (2596)-Kosteniuk,A (2472) Krasnaya Polyana 2021}) 10. Qc1 {[%emt 0:00:50] Prevents Nc2.} Be7 {[%emt 0:18:38]} 11. a3 {[%emt 0:05:32]} Nd5 {[%emt 0:02:45]} 12. Qxc4 {[%emt 0:01:07]} O-O {[%emt 0:03:06]} 13. Nbd2 {[%emt 0:00:08]} Bd7 {[%emt 0:06:05]} 14. Qc2 {[%emt 0:07:50]} Rc8 {[%emt 0:03:43]} 15. Ne4 {[%emt 0:00:20] Against c5} b6 {[%emt 0:10:22]} 16. Ne5 {[%emt 0:11:21]} c5 {[%emt 0:00:53]} 17. dxc5 {[%emt 0:02:45]} Bxc5 {[%emt 0:00:11]} 18. Qd2 {[%emt 0:04:34]} Ba4 {[%emt 0:10:19]} 19. Nxc5 {[%emt 0:02:22]} Rxc5 {[%emt 0:00:06]} 20. Rac1 {[%emt 0:00:40]} Nc3 {[%emt 0:01:48]} 21. Nd3 {[%emt 0:02:52]} Nb5 {[%emt 0:04:15]} 22. Qe3 {[%emt 0:25:29]} ({Of course not} 22. Rxc5 bxc5 23. Qe3 (23. Rc1 Nd4 $11) 23... Nd4 $11) 22... Rxc1 {[%emt 0:00:17]} 23. Rxc1 {[%emt 0:00:04]} Qd4 {[%emt 0:00:06]} 24. Bb7 {[%emt 0:08:51]} a5 {[%emt 0:00:53]} (24... Qxe3 $142 25. fxe3 Nd6 26. Bxa6 Ra8) 25. Bc6 $16 {[%emt 0:02:48][%cal Ob2b3]} Qxe3 {[%emt 0:01:00]} 26. fxe3 {[%emt 0:00:04][%cal Ob2b3] Threatens to win with b3!} Rc8 {[%emt 0:00:04][%cal Ob5d4]} 27. Kf2 {[%emt 0:01:42]} Kf8 {[%emt 0:00:22]} 28. Bxb5 {[%emt 0:02:41]} Rxc1 {[%emt 0:00:06]} 29. Bxa4 {[%emt 0:00:03]} Rc7 {[%emt 0:01:15]} 30. Bb5 {[%emt 0:00:48]} Ke7 {[%emt 0:00:11]} 31. a4 {[%emt 0:00:25]} Kd6 {[%emt 0:00:13]} 32. Ke1 {[%emt 0:00:08]} f6 {[%emt 0:00:50]} (32... f5 $16 33. Kd2 h5) 33. Kd2 $18 {[%emt 0:00:04]} g5 {[%emt 0:00:20]} 34. Nf2 {[%emt 0:00:28]} ({Better is} 34. e4 $18) 34... h5 {[%emt 0:00:14]} (34... f5 $16 {was necessary.} 35. b3 Rf7) 35. b3 {[%emt 0:02:53]} Ke5 {[%emt 0:00:32]} 36. Bd3 {[%emt 0:00:26]} f5 {[%emt 0:00:27]} 37. Bc4 {[%emt 0:00:37]} Rh7 {[%emt 0:01:03]} (37... Rd7+ $16 38. Ke1 Kd6) 38. Nd3+ {[%emt 0:00:44]} Kd6 {[%emt 0:00:15]} 39. e4 {[%emt 0:01:02][%cal Be3e4,Be4e5][%mdl 32]} h4 $2 {[%emt 0:00:34] [#]} (39... fxe4 40. Nf2 Ke5 41. Nxe4 Rg7) 40. e5+ {[%emt 0:00:23]} Kd7 {[%emt 0:01:21]} 41. Nf2 {[%emt 0:00:20]} hxg3 {[%emt 0:00:24]} 42. hxg3 {[%emt 0:00:03][%cal Bh2g3,Bg3g4][%mdl 32]} Rh2 {[%emt 0:00:43]} 43. Ke3 {[%emt 0:01:31]} Ke7 {[%emt 0:00:32]} 44. g4 {[%emt 0:02:59]} Rg2 $2 {[%emt 0:00:21]} (44... fxg4 {keeps fighting.} 45. Nxg4 Rh7) 45. Kf3 {[%emt 0:00:16]} Rg1 {[%emt 0:00:07]} 46. e3 {[%emt 0:01:33]} Re1 {[%emt 0:00:43]} 47. Bd3 {[%emt 0:00:31]} fxg4+ {[%emt 0:00:30]} 48. Nxg4 {[%emt 0:00:10]} Rc1 {[%emt 0:00:34]} 49. Nf2 {[%emt 0:00:40]} (49. Bc4 $142) 49... Rc3 $2 {[%emt 0:00:43]} (49... Rc5 50. Ng4 Ke8) 50. Bc4 {[%emt 0:00:08] Ne4 is the strong threat.} b5 {[%emt 0:00:20] [#]} (50... Rc1 $142 51. Nh3 b5 52. Bxb5 Rc5) 51. Ne4 $1 {[%emt 0:01:17]} bxc4 {[%emt 0:00:46]} (51... Rc1 52. axb5) 52. Nxc3 {[%emt 0:00:06] White mates.} cxb3 {[%emt 0:00:01]} 53. Kg4 {[%emt 0:01:08]} Kd7 {[%emt 0:00:52]} 54. Kxg5 {[%emt 0:00:12] Weighted Error Value: White=0.14 (very precise) /Black=0.45} 1-0

[Event "New York Spring GM-A 2022"]
[Site "New York"]
[Date "2022.04.15"]
[Round "1.3"]
[White "Song, Edward"]
[Black "Guo, Arthur"]
[Result "1-0"]
[ECO "C28"]
[WhiteElo "2383"]
[BlackElo "2412"]
[Annotator "TA"]
[PlyCount "111"]
[EventDate "2022.04.14"]
[EventType "tourn"]
[EventCountry "USA"]
[SourceTitle "playchess.com"]
[Source "ChessBase"]
[SourceQuality "1"]
[TimeControl "5400+30"]

{[%evp 19,111,15,23,19,27,0,1,9,6,0,6,8,20,14,17,20,8,25,15,15,15,-16,-21,-13,-14,-12,0,0,0,0,0,-8,-17,-10,3,-34,-38,-40,0,0,0,0,0,0,0,0,5,1,25,6,22,21,29,33,29,0,312,168,176,175,218,235,488,504,479,490,480,456,527,461,534,539,585,584,511,516,606,467,593,577,843,800,1085,911,998,843,990,1074,860,741,707,664,645,627]} 1. e4 {[%emt 0:00:06]} e5 {[%emt 0:00:22]} 2. Nc3 {[%emt 0:00:16]} Nc6 {[%emt 0:01:29]} 3. Bc4 {[%emt 0:00:20]} Nf6 {[%emt 0:01:40]} 4. d3 {[%emt 0:00:20]} Na5 {[%emt 0:05:23]} 5. Bb3 {[%emt 0:01:03]} Be7 {[%emt 0:03:22]} 6. f4 {[%emt 0:02:29]} Nxb3 {[%emt 0:02:10]} 7. axb3 {[%emt 0:00:06]} d6 {[%emt 0:00:17]} 8. Nf3 {[%emt 0:07:16]} exf4 {[%emt 0:01:39]} 9. Bxf4 {[%emt 0:03:01]} O-O {[%emt 0:00:59]} 10. O-O {[%emt 0:01:01]} c6 {[%emt 0:12:48]} 11. h3 {[%emt 0:10:26] [#] C28: Vienna Game: 2...Nf6 3 Bc4 Nc6.} d5 $146 {[%emt 0:04:42]} ({Predecessor:} 11... Be6 12. Qd2 d5 13. e5 Nd7 14. d4 f6 15. Rae1 fxe5 16. Nxe5 Nxe5 17. Bxe5 Bf5 18. Rf3 Bg5 {½-½ (40) Malyovanyi,Y (2360)-Thorsteinsdottir,G (1958) Prague 2020}) 12. e5 {[%emt 0:00:36]} Ne8 {[%emt 0:00:53][%cal Bf6e8,Be8c7,Bc7e6][%mdl 32]} 13. Qd2 {[%emt 0:10:07] The position is equal.} Nc7 {[%emt 0:05:06]} 14. Ne2 {[%emt 0:07:28]} Ne6 {[%emt 0:03:19]} 15. Be3 {[%emt 0:05:09]} c5 {[%emt 0:00:53]} 16. d4 {[%emt 0:04:14]} b6 {[%emt 0:01:33]} 17. Ng3 {[%emt 0:03:38]} f5 {[%emt 0:05:03] aiming for ...f4.} 18. exf6 {[%emt 0:27:34]} Rxf6 {[%emt 0:00:26]} 19. Nh5 {[%emt 0:05:55]} Rf8 {[%emt 0:01:30]} 20. Nf4 {[%emt 0:01:34]} (20. Ne5 cxd4 21. Rxf8+ (21. Bxd4 $2 Nxd4 22. Rxf8+ Bxf8 $19) 21... Qxf8 $17) (20. Rae1 {with more complications.} a5 21. dxc5 bxc5 22. Ne5) 20... Nxf4 {[%emt 0:01:31]} 21. Bxf4 {[%emt 0:00:01]} Bf5 {[%emt 0:00:31][%cal Of5c2]} 22. Ne5 {[%emt 0:01:51]} Bf6 {[%emt 0:06:37]} 23. c3 {[%emt 0:02:07]} Be4 {[%emt 0:01:05]} 24. Ng4 {[%emt 0:03:31]} Bh4 {[%emt 0:05:51]} 25. Be5 {[%emt 0:00:49]} Qe7 {[%emt 0:03:14]} 26. Qe2 {[%emt 0:01:06]} h5 {[%emt 0:10:03]} 27. Nf2 {[%emt 0:00:35]} Bg6 {[%emt 0:00:30] A strong pair of Bishops.} 28. Nd3 {[%emt 0:01:00]} Bg3 {[%emt 0:02:12]} 29. Qd2 {[%emt 0:00:35]} Bxd3 {[%emt 0:05:43]} 30. Rxf8+ {[%emt 0:00:19]} Rxf8 {[%emt 0:00:05]} 31. Bxg3 {[%emt 0:00:08]} Be4 {[%emt 0:01:59]} 32. Be5 {[%emt 0:00:14][%cal Bg3e5,Be5d6,Bd6c5][%mdl 32]} Qf7 {[%emt 0:02:38]} 33. Qe2 {[%emt 0:00:27]} a5 {[%emt 0:01:58]} 34. dxc5 {[%emt 0:01:26]} bxc5 {[%emt 0:00:02]} 35. Bd6 {[%emt 0:00:32]} Rc8 {[%emt 0:04:03]} 36. Rxa5 {[%emt 0:01:10]} Rc6 {[%emt 0:02:29]} 37. Bxc5 {[%emt 0:00:00] Strongly threatening Ra8+.} Bxg2 $2 {[%emt 0:02:49][%mdl 8192] White leaves nothing to chance now.} 38. Ra8+ {[%emt 0:00:19]} (38. Qxg2 Rg6 39. Bd4 (39. Ra8+ Kh7 $17) 39... Rxg2+ 40. Kxg2 Qg6+ 41. Kf3 Qd3+ 42. Kf2 Qd2+ 43. Kf3 Qd1+ 44. Kf2 Qxb3 45. Ra8+ Kh7 $17) (38. Kxg2 $142 Rg6+ 39. Kh1) 38... Kh7 $18 {[%emt 0:00:10] [#]} 39. Rf8 $1 $36 {[%emt 0:00:36][%mdl 2048] White is really pushing. Chess con chili.} Qg6 {[%emt 0:01:40] ...Bf3+ is the strong threat.} (39... Bf3 40. Rxf7) 40. Qxg2 {[%emt 0:00:19]} Qxg2+ $2 {[%emt 0:00:34]} (40... Qb1+ {might work better.} 41. Kh2 (41. Rf1 Qd3 $18) 41... Rxc5) 41. Kxg2 {[%emt 0:00:01] White is clearly winning.} Rxc5 {[%emt 0:00:01][%mdl 4096] Endgame KR-KR} 42. b4 {[%emt 0:00:52]} Rb5 {[%emt 0:00:34]} 43. Rf5 {[%emt 0:00:48]} Kg6 {[%emt 0:00:54]} 44. Re5 {[%emt 0:00:04]} Kf6 {[%emt 0:01:07]} 45. Rxh5 {[%emt 0:00:23]} g6 {[%emt 0:00:21]} 46. Rh4 {[%emt 0:00:33]} Rb8 {[%emt 0:00:28]} 47. Kf3 {[%emt 0:00:18]} Ke5 {[%emt 0:00:23]} 48. Ke3 {[%emt 0:00:41]} Ra8 {[%emt 0:00:33]} 49. b5 {[%emt 0:00:16]} g5 {[%emt 0:00:29]} 50. Rg4 {[%emt 0:01:03]} Kf5 {[%emt 0:00:30]} 51. Kf3 {[%emt 0:00:42]} Rh8 {[%emt 0:00:27]} 52. Kg2 {[%emt 0:00:31]} Rb8 {[%emt 0:00:50]} 53. Rb4 {[%emt 0:00:07]} Rb6 {[%emt 0:00:13]} 54. Kf3 {[%emt 0:00:23]} Rh6 {[%emt 0:00:21]} 55. Kg3 {[%emt 0:00:41] Threatens to win with b6.} Rb6 {[%emt 0:00:01]} 56. b3 {[%emt 0:00:34] Weighted Error Value: White=0.12 (very precise) /Black=0.38} 1-0

[Event "New York Spring GM-A 2022"]
[Site "New York"]
[Date "2022.04.15"]
[Round "1.4"]
[White "Ostrovskiy, Aleksandr"]
[Black "Liang, Jason"]
[Result "0-1"]
[ECO "B52"]
[WhiteElo "2409"]
[BlackElo "2419"]
[Annotator "TA"]
[PlyCount "108"]
[EventDate "2022.04.14"]
[EventType "tourn"]
[EventCountry "USA"]
[SourceTitle "playchess.com"]
[Source "ChessBase"]
[SourceQuality "1"]
[TimeControl "5400+30"]

{[%evp 9,107,6,19,17,14,8,8,10,26,4,0,16,0,-55,-10,-3,-1,-6,-6,-7,-7,-39,-37,-29,-10,-9,0,0,8,6,8,14,23,18,26,0,0,-85,-54,-102,-48,-68,-39,-42,-59,-55,-49,-77,-91,-76,-84,-78,-56,-46,-41,-79,-77,-83,-82,-80,-83,-87,-105,-152,-126,-164,-167,-184,-192,-228,-214,-229,-232,-215,-205,-214,-222,-195,-157,-158,-158,-158,-156,-191,-166,-166,-177,-155,-139,-111,-176,-29982,-29983,-29973,-29969,-29997,-29998,-29998,-29999,-29999]} 1. e4 {[%emt 0:00:27]} c5 {[%emt 0:00:09]} 2. Nf3 {[%emt 0:00:24]} d6 {[%emt 0:00:24]} 3. Bb5+ {[%emt 0:00:05]} Bd7 {[%emt 0:00:10]} 4. c4 {[%emt 0:01:12]} Nf6 {[%emt 0:00:45]} 5. Nc3 {[%emt 0:00:57]} g6 {[%emt 0:00:56]} 6. O-O {[%emt 0:04:38] B52: Sicilian: Moscow Variation with 3...Bd7.} Bg7 {[%emt 0:00:12]} 7. d4 {[%emt 0:04:39]} cxd4 {[%emt 0:00:18]} 8. Nxd4 {[%emt 0:00:14] The position is equal.} O-O {[%emt 0:00:25]} 9. h3 {[%emt 0:04:06]} a6 {[%emt 0:01:52]} 10. Bxd7 {[%emt 0:01:14]} Nbxd7 {[%emt 0:00:38]} 11. a4 {[%emt 0:09:05]} (11. b3 $11) 11... Rc8 {[%emt 0:10:58]} 12. b3 $1 {[%emt 0:03:09]} Nc5 {[%emt 0:00:42]} 13. Re1 {[%emt 0:08:18]} e6 {[%emt 0:03:05]} 14. Ba3 {[%emt 0:17:16] [#]} Qb6 $146 {[%emt 0:14:06]} ({Predecessor:} 14... d5 15. e5 Nfe4 16. Nxe4 dxe4 17. Ra2 Bxe5 18. Bxc5 Rxc5 19. Rd2 Bf4 20. Nxe6 Qxd2 21. Nxc5 {1-0 (28) Tikranian,A (2120)-Vandamme,F (1875) Brasschaat 2016}) 15. a5 {[%emt 0:07:47]} Qc7 {[%emt 0:01:06]} (15... Qxa5 $2 16. b4 Qc7 17. bxc5 dxc5 18. Nf3 $16) 16. b4 {[%emt 0:10:47]} Ncd7 {[%emt 0:02:27]} 17. Rc1 {[%emt 0:00:12]} Rfd8 {[%emt 0:16:57]} (17... Qxc4 18. Ncb5 $1 axb5 19. Rxc4 bxc4 20. Nb5 $16) 18. Na4 {[%emt 0:02:01]} Qb8 {[%emt 0:01:44]} 19. Nf3 {[%emt 0:03:30]} b5 $36 {[%emt 0:04:10][%mdl 2048] Black is more active.} 20. axb6 {[%emt 0:00:58]} Nxb6 {[%emt 0:00:08]} 21. Nxb6 {[%emt 0:01:22]} Qxb6 {[%emt 0:00:07]} 22. Qa4 {[%emt 0:10:17]} Qb7 {[%emt 0:02:47]} 23. e5 {[%emt 0:02:28]} (23. c5 $11 {keeps the balance.}) 23... dxe5 $17 {[%emt 0:02:35]} 24. Nxe5 {[%emt 0:01:57]} (24. Rcd1 $15 {is more appropriate.}) 24... Ne4 {[%emt 0:00:28]} ({Black should play} 24... Nh5 $1 $17 {[%cal Rh5f4] White must now prevent ...Nf4.} 25. c5 Nf4) 25. Nf3 $15 {[%emt 0:00:35]} Nc3 {[%emt 0:01:10]} 26. Qb3 {[%emt 0:04:21]} Rd3 {[%emt 0:00:22][%cal Oc3e2] Threatens to win with ...Ne2+!} 27. Qc2 {[%emt 0:00:01] Prevents Ne2+.} Rcd8 {[%emt 0:04:55]} 28. Re3 {[%emt 0:01:48]} Rxe3 {[%emt 0:07:20] &Nero is much more active.} 29. fxe3 {[%emt 0:00:01]} Qb6 {[%emt 0:00:27]} 30. Re1 {[%emt 0:00:57]} Qc6 {[%emt 0:01:09]} (30... Qc7 $5 {[%cal Rc7c4]} 31. c5 Rb8 $17) 31. c5 {[%emt 0:00:26]} Qb5 {[%emt 0:02:35]} 32. Kh1 {[%emt 0:00:12]} Qd3 {[%emt 0:03:04]} 33. Qxd3 {[%emt 0:01:03]} Rxd3 {[%emt 0:00:06][%cal Bd8d3,Bd3e3,Be3e1][%mdl 32]} 34. Bb2 {[%emt 0:00:31]} Nd5 {[%emt 0:00:47][%csl LRb2,LRb4,LRe3]} 35. Bxg7 {[%emt 0:00:14]} Kxg7 $17 {[%emt 0:00:05][%mdl 4096] Endgame KRN-KRN} 36. Rc1 {[%emt 0:00:24]} (36. Ne5 $142 Rc3 37. Nc6) 36... Rxe3 {[%emt 0:01:14]} 37. c6 {[%emt 0:00:39]} Nc7 {[%emt 0:00:12]} 38. Rd1 {[%emt 0:00:13]} Kf6 $1 {[%emt 0:01:05]} 39. Rd7 {[%emt 0:00:26]} Nd5 {[%emt 0:00:19]} 40. Nd2 {[%emt 0:00:54] [#] aiming for c7.} Re1+ $1 {[%emt 0:03:09]} ({Resist} 40... Nxb4 41. c7 Re1+ 42. Kh2 $18) 41. Kh2 {[%emt 0:00:01] c7 is the strong threat.} Rc1 {[%emt 0:00:09]} (41... Nxb4 42. c7 Rc1 43. Ne4+ Ke5 44. Nd6 $18) 42. Ne4+ {[%emt 0:00:29]} Ke5 {[%emt 0:00:28]} 43. Nd6 {[%emt 0:01:11]} f5 {[%emt 0:02:48][%cal Bf7f5,Bf5f4][%mdl 32]} ({Don't take} 43... Nxb4 44. c7 $18) 44. Nf7+ {[%emt 0:00:27]} Kf6 {[%emt 0:01:40]} 45. Nd8 {[%emt 0:01:04]} f4 {[%emt 0:00:29]} 46. Rd6 {[%emt 0:00:00]} Nxb4 {[%emt 0:03:34]} 47. Rxe6+ {[%emt 0:00:06]} Kf5 {[%emt 0:00:38]} 48. Re7 {[%emt 0:00:44]} Nd5 {[%emt 0:02:10]} ({Stronger than} 48... Nxc6 49. Rc7 $15) 49. Rf7+ {[%emt 0:00:39]} Ke4 {[%emt 0:00:12] Strongly threatening ...Ne3.} 50. Rxh7 $2 {[%emt 0:00:20]} (50. Ne6 $19) 50... Ne3 {[%emt 0:00:09] Black mates.} 51. Re7+ {[%emt 0:00:38] [#]} Kd3 $1 {[%emt 0:00:11]} 52. h4 {[%emt 0:00:26]} Ng4+ {[%emt 0:00:05]} 53. Kh3 {[%emt 0:00:24]} Nf2+ {[%emt 0:00:05]} 54. Kh2 {[%emt 0:00:08]} Rh1# {[%emt 0:00:06] Weighted Error Value: White=0.26 (precise) /Black=0.05 (flawless)} 0-1

[Event "New York Spring GM-A 2022"]
[Site "New York"]
[Date "2022.04.15"]
[Round "1.5"]
[White "Wang, Kevin"]
[Black "Nagy, Gabor"]
[Result "1/2-1/2"]
[ECO "E04"]
[WhiteElo "2389"]
[BlackElo "2530"]
[Annotator "TA"]
[PlyCount "37"]
[EventDate "2022.04.14"]
[EventType "tourn"]
[EventCountry "USA"]
[SourceTitle "playchess.com"]
[Source "ChessBase"]
[SourceQuality "1"]
[TimeControl "5400+30"]

{[%evp 12,37,0,-4,0,0,0,0,0,0,0,0,0,7,13,15,6,16,15,20,23,10,13,15,2,0,0,6]} 1. d4 {[%emt 0:00:20]} d5 {[%emt 0:00:24]} 2. c4 {[%emt 0:00:29]} e6 {[%emt 0:02:02]} 3. Nf3 {[%emt 0:00:30]} dxc4 {[%emt 0:00:27]} 4. Nc3 {[%emt 0:06:24]} c6 {[%emt 0:02:58]} 5. g3 {[%emt 0:03:30]} Nf6 {[%emt 0:00:54]} 6. Bg2 {[%emt 0:00:47]} b5 {[%emt 0:01:44]} 7. Ne5 $1 {[%emt 0:01:08][%cal Oc3b5] 7.Ne5 is better than 7.0-0.} a6 {[%emt 0:00:14] E04: Open Catalan: 5 Nf3.} 8. O-O {[%emt 0:00:34]} Bb7 {[%emt 0:00:26]} 9. b3 {[%emt 0:01:29]} cxb3 {[%emt 0:04:02]} 10. axb3 {[%emt 0:00:37]} Be7 {[%emt 0:00:40]} 11. Bb2 {[%emt 0:02:41]} O-O {[%emt 0:00:54]} 12. Ne4 {[%emt 0:02:56]} Nd5 {[%emt 0:02:40]} 13. Nc5 {[%emt 0:02:14]} Bxc5 {[%emt 0:01:01]} 14. dxc5 {[%emt 0:00:03]} f6 {[%emt 0:00:14]} 15. Nd3 {[%emt 0:03:10][%mdl 1024] [#] White has compensation.} a5 $146 {[%emt 0:02:26]} ({Predecessor:} 15... Nd7 16. e4 Nc7 17. Bc3 Qe7 18. Ba5 Rac8 19. f4 e5 20. f5 Rfd8 21. Qc2 g6 22. fxg6 hxg6 {1-0 (31) Salem,A (2679)-Niemann,H (2609) Sharjah 2021}) 16. e4 {[%emt 0:10:55]} Nc7 {[%emt 0:00:21] The position is equal.} 17. Qc2 {[%emt 0:08:01]} b4 {[%emt 0:04:34]} 18. Rfd1 {[%emt 0:08:26]} Qe7 {[%emt 0:00:27]} 19. e5 {[%emt 0:16:34] A balanced but interesting game.  Weighted Error Value: White=0.01 (flawless) /Black=0.00 (flawless)} 1/2-1/2

[Event "New York Spring GM-A 2022"]
[Site "New York"]
[Date "2022.04.15"]
[Round "2.1"]
[White "Belous, Vladimir"]
[Black "Nagy, Gabor"]
[Result "1-0"]
[ECO "D31"]
[WhiteElo "2516"]
[BlackElo "2530"]
[Annotator "TA"]
[PlyCount "69"]
[EventDate "2022.04.14"]
[EventType "tourn"]
[EventCountry "USA"]
[SourceTitle "playchess.com"]
[Source "ChessBase"]
[SourceQuality "1"]
[TimeControl "5400+30"]

{[%evp 13,68,-20,0,-37,-41,-69,35,36,29,19,43,24,31,29,18,26,57,58,56,44,51,47,45,45,58,65,60,66,58,34,135,122,451,439,882,594,579,562,866,786,1159,1156,29973,29974,29946,5160,29981,29982,29982,29983,29996,29997,29997,29998,29998,29999,29999]} 1. d4 {[%emt 0:00:09]} d5 {[%emt 0:00:39]} 2. c4 {[%emt 0:00:17]} e6 {[%emt 0:00:10]} 3. Nc3 {[%emt 0:00:18]} Bb4 {[%emt 0:00:36]} 4. Nf3 {[%emt 0:03:31]} dxc4 {[%emt 0:00:22]} 5. e4 {[%emt 0:03:01][%cal Be2e4,Be4e5][%mdl 32]} b5 {[%emt 0:00:22]} 6. a4 {[%emt 0:01:28]} c6 {[%emt 0:01:09]} 7. Bd2 {[%emt 0:00:14]} Nf6 {[%emt 0:02:06]} 8. Qc2 {[%emt 0:05:43] D31: Queen's Gambit Declined: Semi-Slav without ...Nf6 (+ Marshall Gambit and Noteboom) and Exchange Variation lines without ...Nf6.} Bb7 {[%emt 0:03:28] [#]} 9. h4 $146 {[%emt 0:04:43]} ({Predecessor:} 9. e5 Bxc3 10. bxc3 Nd5 11. Ng5 h6 12. Ne4 O-O 13. Nd6 Qd7 14. Be2 a5 15. Rg1 {0-1 (26) Stefansson,V (2312)-Svane,R (2583) Chess.com INT 2017}) 9... c5 {[%emt 0:04:23]} (9... a6 $15 10. e5 Nd5) 10. e5 $1 $14 {[%emt 0:04:22] White is slightly better.} Bxc3 {[%emt 0:10:59]} 11. Bxc3 {[%emt 0:08:25]} Be4 {[%emt 0:05:52]} 12. Qc1 {[%emt 0:02:34]} Nd5 {[%emt 0:02:04] [#] aiming for ...Bxf3.} 13. axb5 {[%emt 0:02:08]} Bxf3 {[%emt 0:00:46]} 14. gxf3 {[%emt 0:00:06]} Nxc3 {[%emt 0:03:25]} 15. Qxc3 {[%emt 0:00:49]} ({Don't play} 15. bxc3 $6 cxd4 16. Bxc4 dxc3 $11) 15... cxd4 {[%emt 0:00:18]} 16. Qxc4 {[%emt 0:00:04]} O-O {[%emt 0:00:49]} 17. f4 {[%emt 0:01:19] Strongly threatening Bg2.} Nd7 $1 {[%emt 0:11:16]} 18. Qxd4 {[%emt 0:00:06]} Nb6 {[%emt 0:01:26]} 19. Qxd8 {[%emt 0:03:18]} Raxd8 {[%emt 0:04:40]} 20. Rxa7 {[%emt 0:08:25]} Rd4 $1 {[%emt 0:01:00]} 21. Rh3 {[%emt 0:00:06] Hoping for Rc3.} Nd5 {[%emt 0:02:23] Inhibits Rc3.} (21... Re4+ $1 $14 22. Re3 Rxf4) 22. Rb3 $16 {[%emt 0:02:54] And now b6 would win.} Rc8 $2 {[%emt 0:08:23][%mdl 8192] This costs Black the game.} (22... Nxf4 $16 {is more resistant.} 23. f3 Rb8) 23. b6 $18 {[%emt 0:01:44]} Rc1+ {[%emt 0:03:06]} 24. Ke2 {[%emt 0:00:07] White threatens Ra8+ and mate.} h5 {[%emt 0:00:52]} 25. Bh3 {[%emt 0:14:07]} Rc2+ {[%emt 0:03:49]} 26. Kf3 {[%emt 0:00:22]} Rxf4+ {[%emt 0:04:35]} 27. Kg3 {[%emt 0:00:06]} g5 {[%emt 0:00:34]} 28. b7 {[%emt 0:01:28]} gxh4+ {[%emt 0:02:09]} 29. Kh2 {[%emt 0:00:09]} Rfxf2+ {[%emt 0:00:13]} 30. Kg1 {[%emt 0:00:07] White mates.} Kg7 {[%emt 0:00:51]} 31. b8=Q {[%emt 0:00:15]} Nf4 {[%emt 0:00:22] [#]} 32. Rxf7+ $3 {[%emt 0:00:26]} Kxf7 {[%emt 0:00:05]} 33. Rb7+ {[%emt 0:00:09]} Kg6 {[%emt 0:00:05]} 34. Qg8+ {[%emt 0:00:05]} Kh6 {[%emt 0:00:04]} 35. Qg7# {[%emt 0:01:30] Weighted Error Value: White=0.05 (flawless) /Black=0.76} 1-0